{"text_format":"2","workbook":"xlsx","n_sheets":8,"sheets":["Жеребьевка","Тестирование","Итоговая ведомость","Ведомость 1 и 2","Ведомость 3","Ведомость 4","Ведомость 5,6 и 7","Ведомость 8"],"not_rendered":{"charts":0,"images":0,"macros":0,"external_links":0,"defined_names":0,"comments":0,"pivot_tables":0},"unopened":[],"bounds":{"document_bytes":16777216,"sheet_cells":100000,"run_cost":"one","rows_first":2000,"rows_last":500,"rows_between":2000,"halvings":0,"cell_chars":16384,"cell_head_chars":4096},"cells_cut":0,"cells_raw":0,"read":"whole","date_system":"1900"}

{"sheet":"Жеребьевка","index":0,"n_rows":13,"n_cols":3,"rows_kept":13,"cut":false,"hidden":false,"merged":[[0,0,0,2],[1,0,1,2]]}
["ЖЕРЕБЬЕВКА  "]
[]
["№ участника по жеребьевке","Ф.И.О.","ФО"]
[1]
[2]
[3]
[4]
[5]
[6]
[7]
[8]
[9]
[10]

{"sheet":"Тестирование","index":1,"n_rows":23,"n_cols":3,"rows_kept":23,"cut":false,"hidden":false,"merged":[[0,0,0,2],[1,0,1,2]]}
["ВЕДОМОСТЬ ТЕОРЕТИЧЕСКИХ ОЦЕНОК  "]
[]
["Номер участника","Ф.И.О.","Балл"]
[1]
[2]
[3]
[4]
[5]
[6]
[7]
[8]
[9]
[10]
[11]
[{"$f":"A14+1","v":12}]
[{"$f":"A15+1","v":13}]
[14]
[15]
[16]
[17]
[18]
[19]
[20]

{"sheet":"Итоговая ведомость","index":2,"n_rows":20,"n_cols":7,"rows_kept":20,"cut":false,"hidden":false,"merged":[[20,3,20,4],[21,3,21,4],[0,0,0,6],[1,0,1,6],[2,0,2,6],[16,3,16,4],[17,3,17,4],[15,3,15,4],[19,3,19,4],[18,3,18,4]]}
["ИТОГОВАЯ ВЕДОМОСТЬ"]
["Окружной  этап\nНационального конкурса профессионального мастерства «СТРОЙМАСТЕР» \nНоминация \"Лучший штукатур\""]
[]
["Номер участника по жеребьевке ","ФО","Ф.И.О. участника","Балл по теории","Балл по практике","Общий балл","Место"]
[1,{"$nulls":4},{"$f":"SUM(D5:E5)","v":0}]
[2,{"$nulls":4},0]
[3,{"$nulls":4},0]
[4,{"$nulls":4},0]
[5,{"$nulls":4},0]
[6,{"$nulls":4},0]
[7,{"$nulls":4},0]
[8,{"$nulls":4},0]
[9,{"$nulls":4},0]
[10,{"$nulls":4},0]
[]
[null,"Конкурсная комиссия:","______________________","ФИО"]
[null,null,"______________________","ФИО"]
[null,null,"______________________","ФИО"]
[null,null,"______________________","ФИО"]
[null,null,"______________________","ФИО"]

{"sheet":"Ведомость 1 и 2","index":3,"n_rows":15,"n_cols":14,"rows_kept":15,"cut":false,"hidden":false,"merged":[[0,1,0,13],[1,1,1,13],[2,4,2,13],[2,0,3,0],[14,0,14,3],[4,0,4,13],[8,0,8,13],[2,1,3,1],[2,2,2,3]]}
[null,"ВЕДОМОСТЬ 1  и 2"]
[]
[null,"Критерии","Оценочные позиции (Количество баллов) ",null,"Номера участников по жеребьевке"]
[{"$nulls":4},1,2,3,4,5,6,7,8,9,10]
["1.Соблюдение технологии замешивания гипсовой штукатурной смеси КНАУФ-Ротбанд – 3 балла."]
["1","Сухая смесь всыпается в воду, перемешивается","Соблюдается                            1","Не соблюдается               0"]
["2","Штукатурная смесь однородная, не содержащая комков","Соблюдается                            1","Не соблюдается               0"]
["3","Соблюдается время использования смеси","Соблюдается                            1","Не соблюдается               0"]
["2. Соблюдение технологии обработки гипсовых штукатурок КНАУФ – 10 баллов."]
["1","Нанесение штукатурного слоя не более 50 мм","Соблюдается                            2","Не соблюдается               0"]
["2","Выравнивание (подрезка) поверхности - примерно через 45–60 мин. после затворения","Соблюдается                           2","Не соблюдается               0"]
["3","Первое заглаживание поверхности ","Затиралась и заглаживалась                               2","Без заглаживания и не затиралась губкой                       0 "]
["4","Повторное заглаживание поверхности ","Не проводилось                        2","Проводилось                        0"]
["5","Время выполнения работ","Все операции выполнены в срок                        2","Нарушение сроков выполнения работ                   0"]
["Итого:",null,null,null,{"$f":"SUM(E6:E14)","v":0},0,0,0,0,0,0,0,0,0]

{"sheet":"Ведомость 3","index":4,"n_rows":11,"n_cols":15,"rows_kept":11,"cut":false,"hidden":false,"merged":[[2,0,3,0],[4,0,4,14],[10,0,10,4],[2,5,2,14],[0,1,0,14],[1,1,1,14],[2,1,3,1],[2,2,2,4],[9,2,9,4],[8,2,8,4]]}
[null,"ВЕДОМОСТЬ 3"]
[]
[null,"Критерии","Оценочные позиции (Количество баллов) ",null,null,"Номера участников по жеребьевке"]
[null,null,2,1,0,1,2,3,4,5,6,7,8,9,10]
["3. Качество поверхностей – 10 баллов"]
[1,"Неровности поверхности не более 2-х","отсутствуют","не более двух","более двух"]
[2,"Глубина неровностей не более 2 мм на 1 м ","отсутствуют","0-2 мм","отклонения более 2 мм"]
[3,"Пузырьки на поверхности не более 3-х","отсутствуют","не более 3-х","более 3-х"]
[4,"Шероховатости ","Оценивается визуально и тактильно каждым судьей"]
[5,"Общее впечатление ","Оценивается визуально и тактильно каждым судьей"]
["Итого:",{"$nulls":4},{"$f":"SUM(F6:F10)","v":0},0,{"$f":"SUM(H6:H10)","v":0},0,0,0,0,0,0,0]

{"sheet":"Ведомость 4","index":5,"n_rows":16,"n_cols":15,"rows_kept":16,"cut":false,"hidden":false,"merged":[[15,0,15,4],[2,1,3,1],[2,2,2,4],[0,1,0,14],[1,1,1,14],[2,5,2,14],[2,0,3,0],[4,0,4,14]]}
[null,"ВЕДОМОСТЬ 4"]
[]
[null,"Критерии","Оценочные позиции (Количество баллов) ",null,null,"Номера участников по жеребьевке"]
[null,null,3,1.5,0,1,2,3,4,5,6,7,8,9,10]
["4. Отсутствие отклонений оштукатуренной поверхности по вертикали и горизонтали - 30 баллов"]
[1,"Стена А: предельное отклонение от вертикали на всю высоту стены не более 5 мм","отсутствует ","До 5 мм/м","Свыше 5 мм/м"]
[2,"Стена Б (левая часть): предельное отклонение от вертикали на всю высоту стены не более 5 мм","отсутствует ","До 5 мм/м","Свыше 5 мм/м"]
[3,"Стена Б (правая часть): предельное отклонение от вертикали на всю высоту стены не более 5 мм","отсутствует ","До 5 мм/м","Свыше 5 мм/м"]
[4,"Стена В (ценральная часть полуколонны) отклонения поверхности по вертикали на всю высоту стены  не более 5 мм","отсутствует ","До 1 мм/м","Свыше 1 мм/м"]
[5,"Угол между стоной Б и полуколонной В правый равен 90°","есть ","-","нет"]
[6,"Угол между стоной Б и полуколонной В левый равен 90°","есть ","-","нет"]
[7,"Угол левый полуколонны В равен 90°","есть ","-","нет"]
[8,"Угол правый полуколонны В равен 90°","есть ","-","нет"]
[9,"Угол между смежными стенами А и Б равен 90°","есть ","-","нет"]
[10,"Общее впечатление"]
["Итого:",{"$nulls":4},{"$f":"SUM(F6:F15)","v":0},0,0,0,0,0,0,0,0,0]

{"sheet":"Ведомость 5,6 и 7","index":6,"n_rows":13,"n_cols":15,"rows_kept":13,"cut":false,"hidden":false,"merged":[[4,0,4,14],[7,0,7,14],[12,0,12,4],[10,0,10,14],[11,2,11,4],[0,1,0,14],[1,1,1,14],[2,0,3,0],[2,1,3,1],[2,2,2,4],[2,5,2,14]]}
[null,"ВЕДОМОСТЬ 5,6 и 7"]
[]
[null,"Критерии","Оценочные позиции (Количество баллов) ",null,null,"Номера участников по жеребьевке"]
[null,null,1,0.5,0,1,2,3,4,5,6,7,8,9,10]
["5. Соблюдение техники безопасности при проведении штукатурных работ - 2 балла"]
["1","Работа в спецодежде. Внешний вид, спец.обувь (сейфтишуз), перчатки, головной убор. Использование СИЗ: респиратор, защитные очки (при необходимости)","Без нарушений","Незначительные нарушения","Значительные нарушения "]
["3","Электробезопасность ","Без нарушений","Незначительные нарушения","Значительные нарушения "]
["6. Соблюдение условий труда и чистота рабочего места   - 2 балла"]
["1","Содержание рабочей зоны (уборка рабочего места, отсутствие мусора грязи)","Без нарушений","Незначительные нарушения","Значительные нарушения "]
["2","Правильное применение инструментов и приспособлений (организация рабочего места, размещение материала, чистый инструмент, отключение миксера - после замешивания)","Без нарушений","Незначительные нарушения","Значительные нарушения "]
["7. Выполнение декоративного покрытия – 15 баллов."]
["1","Создание рисунка, экспозиции за счет фактуры штукатурки в свободном стиле","Оценивается по 15-и бальной шкале каждым судьей"]
["Итого:",{"$nulls":4},{"$f":"SUM(F6:F12)","v":0},0,0,0,0,0,0,0,0,0]

{"sheet":"Ведомость 8","index":7,"n_rows":10,"n_cols":14,"rows_kept":10,"cut":false,"hidden":false,"merged":[[4,0,4,13],[9,0,9,3],[0,1,0,13],[1,1,1,13],[2,0,3,0],[2,1,3,1],[2,2,2,3],[2,4,2,13],[5,0,8,0]]}
[null,"ВЕДОМОСТЬ 8"]
[]
[null,"Критерии",null,null,"Номера участников по жеребьевке"]
[null,null,2,0,1,2,3,4,5,6,7,8,9,10]
["8. Выполнение параметров технического задания - 8 баллов."]
[null,"Измерение стены А ","Соблюдается","Не соблюдается"]
[null,"Измерение стены Б (левая часть)","Соблюдается","Не соблюдается"]
[null,"Измерение стены Б (правая часть)","Соблюдается","Не соблюдается"]
[null,"Измерение полуколонны В (ширина)","Соблюдается","Не соблюдается"]
["Итого:",null,null,null,{"$f":"SUM(E6:E9)","v":0},0,0,0,0,0,0,0,0,0]